bitfinex/quotes_ETHUSD_20250331
["timestamp","ask_amount","ask_price","bid_price","bid_amount"]
[1743396603473,8.24000147,1809.1,1809.0,31.898]
[1743396603945,8.24000147,1809.1,1808.8,14.5]
[1743396604261,9.04570147,1809.1,1808.8,14.5]
[1743396604583,2.71239147,1809.1,1808.8,14.5]
[1743396604754,2.71239147,1809.1,1808.7,10.99283]
[1743396604755,8.24021147,1809.1,1808.7,10.99283]
[1743396604951,13.76808147,1809.1,1808.7,10.99283]
[1743396605548,2.71239147,1808.9,1808.7,5.464]
[1743396607264,8.24021147,1809.1,1808.7,5.464]
[1743396607566,8.24021147,1809.1,1808.8,5.52833]
[1743396607567,2.71239147,1809.1,1808.8,5.52833]
[1743396608352,8.24001147,1809.1,1808.7,10.9928]
[1743396608554,5.52804,1809.0,1808.7,5.464]
[1743396608861,2.71239147,1809.1,1808.8,5.52837]
[1743396609066,5.52731,1809.2,1808.8,5.52835]
[1743396609277,5.52741,1809.2,1808.8,5.52835]
[1743396610261,15.09509147,1809.3,1808.8,5.52835]
[1743396610555,16.54513971,1809.3,1808.8,5.52835]
[1743396610757,16.54513971,1809.3,1808.9,5.5282]
[1743396611749,22.07236971,1809.3,1808.9,5.5282]
[1743396612355,11.05487,1809.2,1808.8,5.52835]
[1743396612559,5.52731,1809.2,1808.8,5.52835]
[1743396613471,5.52731,1809.2,1808.8,11.05665]
[1743396613664,8.76239147,1809.3,1809.1,5.52741]
[1743396613866,14.28957147,1809.3,1808.9,5.52801]
[1743396614071,19.81680147,1809.3,1808.9,5.52801]
[1743396614577,8.23957147,1809.3,1808.9,5.52801]
[1743396615266,13.76683147,1809.3,1808.9,5.52801]
[1743396616467,8.23957147,1809.3,1808.9,5.52801]
[1743396616843,2.71239147,1809.3,1808.8,6.3186]
[1743396617048,11.05516,1809.2,1808.8,6.3186]
[1743396617236,6.33226,1809.1,1808.7,5.464]
[1743396617442,11.05611,1809.0,1808.6,11.78295]
[1743396618059,5.52795,1809.0,1808.6,11.78295]
[1743396619072,5.52795,1809.0,1808.6,17.31188]
[1743396619270,3.51699147,1809.1,1808.7,5.52881]
[1743396619474,15.09419147,1809.3,1808.8,5.5283]
[1743396619642,15.09419147,1809.3,1809.0,5.5279]
[1743396619975,5.52737,1809.2,1808.6,11.7832]
[1743396620180,5.52737,1809.2,1808.8,5.52845]
[1743396620358,9.04419147,1809.3,1808.9,5.52819]
[1743396620542,9.04419147,1809.3,1808.9,6.31829]
[1743396620543,10.61602845,1809.3,1808.9,6.31829]
[1743396620875,10.61602845,1809.3,1808.9,0.7901]
[1743396621046,5.5273,1809.2,1808.9,0.7901]
[1743396621246,10.61590845,1809.3,1809.0,5.465]
[1743396621746,16.14313845,1809.3,1809.0,5.465]
[1743396621948,10.61590845,1809.3,1809.0,5.465]
[1743396622776,16.14313845,1809.3,1809.0,5.465]
[1743396623078,7.14162384,1809.2,1809.0,5.465]
[1743396623380,12.66920384,1809.2,1809.0,5.465]
[1743396623747,7.14162384,1809.2,1809.0,5.465]
[1743396624878,9.04400147,1809.3,1809.0,5.465]
[1743396625660,5.52731,1809.2,1809.0,5.465]
[1743396625854,5.52731,1809.2,1808.8,5.52846]
[1743396626049,5.52731,1809.2,1808.8,10.99246]
[1743396626580,9.04415147,1809.3,1808.9,5.52817]
[1743396627271,9.04402147,1809.3,1808.9,5.528]
[1743396627967,9.04402147,1809.3,1808.9,11.056]
[1743396628178,9.04402147,1809.3,1808.9,5.528]
[1743396628379,9.05277147,1809.5,1809.0,6.33771]
[1743396628582,9.05234147,1809.7,1809.2,5.52705]
[1743396628885,0.814,1809.4,1809.2,5.464]
[1743396629071,5.52699,1809.3,1809.2,5.464]
[1743396629886,8.23938147,1809.3,1809.2,5.464]
[1743396631979,8.23938147,1809.3,1808.8,11.86665]
[1743396632184,5.52766,1809.1,1808.9,5.464]
[1743396632389,6.34152,1809.2,1808.9,5.464]
[1743396632587,5.52752,1809.2,1808.9,5.464]
[1743396632773,5.52752,1809.2,1808.9,6.274]
[1743396633686,5.52752,1809.2,1808.9,5.464]
[1743396634061,5.52752,1809.2,1808.8,0.81]
[1743396634062,5.52772,1809.1,1808.8,0.81]
[1743396634267,11.87019,1809.0,1808.7,5.464]
[1743396634483,6.34204,1809.0,1808.7,5.464]
[1743396635691,5.52863,1808.8,1808.6,5.464]
[1743396637091,8.24063147,1808.9,1808.6,5.464]
[1743396637475,13.76911147,1808.9,1808.6,5.464]
[1743396637867,0.814,1809.0,1808.7,5.52861]
[1743396638164,14.29014147,1809.1,1808.7,6.33861]
[1743396638374,14.29014147,1809.1,1808.7,11.86729]
[1743396638913,14.29014147,1809.1,1808.7,6.33861]
[1743396639070,19.81799147,1809.1,1808.7,6.33861]
[1743396639391,5.52794,1809.0,1808.7,0.81]
[1743396640604,14.29008147,1809.1,1808.7,6.33869]
[1743396640981,5.52806,1809.0,1808.7,0.81]
[1743396641475,8.24008147,1809.1,1808.7,6.33871]
[1743396641903,8.24008147,1809.1,1808.7,6.33876]
[1743396642118,5.52802,1809.0,1808.7,0.81]
[1743396642780,11.05618,1809.0,1808.7,0.81]
[1743396643911,5.52802,1809.0,1808.7,0.81]
[1743396644698,5.52762,1809.1,1808.7,0.81]
[1743396644913,9.03791147,1809.1,1808.7,7.519082]
[1743396645223,5.52813,1809.0,1808.7,1.990292]
[1743396646211,5.52813,1809.0,1808.7,0.81]
[1743396646212,11.05632,1809.0,1808.7,0.81]
[1743396646788,5.52823,1808.9,1808.7,0.81]
[1743396647201,5.52823,1808.9,1808.6,5.52892]
[1743396647514,8.24062147,1808.9,1808.6,10.99292]
[1743396647727,2.71239147,1808.9,1808.6,16.52194]
[1743396647885,3.51029147,1809.1,1808.6,10.99311]
[1743396648080,3.51029147,1809.1,1808.8,5.52823]
[1743396648286,9.03801147,1809.1,1808.6,5.464]
[1743396648501,9.03801147,1809.1,1808.7,5.52877]
[1743396649811,14.56583147,1809.1,1808.7,5.52877]
[1743396650028,9.03801147,1809.1,1808.7,11.05754]
[1743396650197,9.03801147,1809.1,1808.7,5.52877]
[1743396651296,0.7979,1809.3,1808.8,0.754]
[1743396651496,5.52682,1809.4,1809.1,0.754]
[1743396651695,5.52682,1809.4,1809.0,6.218]
[1743396652223,5.52682,1809.4,1809.0,11.7458]
[1743396654940,5.52703,1809.3,1809.0,6.218]
[1743396655232,5.52682,1809.4,1809.0,11.74591]
[1743396657021,9.03669147,1809.5,1809.0,11.74591]
[1743396657197,9.03669147,1809.5,1809.1,5.52755]
[1743396657896,5.5267,1809.4,1809.1,5.52755]
[1743396658095,9.03669147,1809.5,1809.1,6.702105]
[1743396658296,9.03669147,1809.5,1809.1,1.174555]
[1743396658521,5.52671,1809.4,1809.0,17.27346]
[1743396658703,5.52671,1809.4,1809.1,5.52759]
[1743396658910,5.52671,1809.4,1809.0,11.74583]
[1743396659221,5.52712,1809.3,1809.0,6.218]
[1743396660322,5.52671,1809.4,1809.0,11.74589]
[1743396661223,5.527,1809.3,1809.0,11.74589]
[1743396662141,5.527,1809.3,1809.0,6.218]
[1743396662320,2.71239147,1809.1,1808.7,6.2273]
[1743396662516,5.52836,1808.9,1808.7,5.463]
[1743396663292,5.52883,1808.7,1808.6,31.904]
[1743396666323,5.5293,1808.6,1808.3,0.7643]
[1743396666520,5.5296,1808.5,1808.2,5.463]
[1743396667111,8.24152147,1808.6,1808.2,5.463]
[1743396667305,6.31515,1808.3,1808.1,5.564]
[1743396667508,9.02754147,1808.3,1808.1,5.564]
[1743396667725,14.55789147,1808.3,1808.1,5.564]
[1743396667925,5.53036,1808.2,1808.1,0.1]
[1743396668836,9.02765147,1808.2,1808.1,0.1]
[1743396669037,16.53344162,1808.2,1808.1,0.1]
[1743396671303,20.08344162,1808.2,1808.1,0.1]
[1743396671508,22.79583309,1808.2,1808.1,0.1]
[1743396671753,20.08344162,1808.2,1808.1,0.1]
[1743396672046,22.79583309,1808.2,1808.1,0.1]
[1743396673237,37.57230018,1808.2,1808.1,1e-05]
[1743396673434,6.33632,1807.2,1807.1,0.1]
[1743396673618,10.23566447,1807.2,1807.1,0.1]
[1743396674332,16.28566447,1807.2,1807.1,0.1]
[1743396676736,13.573273,1807.2,1807.1,0.1]
[1743396676907,16.28566447,1807.2,1807.1,0.1]
[1743396677107,15.09871147,1807.2,1807.1,0.1]
[1743396677411,14.29581147,1807.2,1807.1,0.1]
[1743396677634,8.76239147,1807.2,1807.1,0.1]
[1743396677833,3.8029,1807.4,1807.1,0.1]
[1743396677834,6.33577,1807.4,1807.1,0.1]
[1743396678037,2.71239147,1807.3,1807.1,0.1]
[1743396678343,2.71239147,1807.3,1807.2,14.5]
[1743396678643,5.53311,1807.3,1807.2,14.5]
[1743396679136,9.70362862,1807.3,1807.2,14.5]
[1743396679328,9.70362862,1807.3,1807.1,0.1]
[1743396679928,14.29491147,1807.5,1807.1,0.1]
[1743396680129,14.29491147,1807.5,1807.1,0.8667]
[1743396680322,14.29491147,1807.5,1807.2,14.5]
[1743396680717,8.76239147,1807.5,1807.2,14.5]
[1743396681211,8.76239147,1807.5,1807.2,15.60823355]
[1743396681629,8.76239147,1807.5,1807.2,1.10823355]
[1743396681938,2.71239147,1807.5,1807.2,6.57523355]
[1743396682437,8.24496147,1807.5,1807.2,6.57523355]
[1743396682632,5.53291,1807.4,1807.2,6.57523355]
[1743396683738,8.24550147,1807.3,1807.2,1.10823355]
[1743396685541,2.71239147,1807.3,1807.2,1.10823355]
[1743396685751,5.53342,1807.2,1807.1,0.1]
[1743396685938,8.24581147,1807.2,1807.1,0.1]
[1743396686738,2.71239147,1807.2,1807.1,0.1]
[1743396686930,3.53694162,1807.2,1807.1,0.1]
[1743396687116,9.07036162,1807.2,1807.1,0.1]
[1743396687517,3.53694162,1807.2,1807.1,0.1]
[1743396688022,9.07036162,1807.2,1807.1,0.1]
[1743396689153,3.53694162,1807.2,1807.1,0.1]
[1743396690036,9.07036162,1807.2,1807.1,0.1]
[1743396690618,9.86066162,1807.2,1807.1,0.1]
[1743396691226,12.86066162,1807.2,1807.1,0.1]
[1743396694533,13.28529821,1807.2,1807.1,0.1]
[1743396695055,13.83529821,1807.2,1807.1,0.1]
[1743396695954,5.53458,1806.9,1806.5,14.9051]
[1743396696128,8.24706147,1806.8,1806.5,14.9051]
[1743396696329,13.78193147,1806.8,1806.5,16.00973471]
[1743396696530,8.24706147,1806.8,1806.5,16.00973471]
[1743396697526,8.24706147,1806.8,1806.5,1.50973471]
[1743396698540,2.71239147,1806.6,1806.5,0.4051]
[1743396698745,9.07266562,1806.6,1806.3,5.469]
[1743396698946,9.07266562,1806.6,1806.3,6.2916]
[1743396699145,9.07266562,1806.6,1806.3,20.7916]
[1743396699146,3.53712562,1806.6,1806.3,20.7916]
[1743396699466,2.71239147,1806.6,1806.3,27.43477363]
[1743396699686,2.71239147,1806.6,1806.3,27.43470363]
[1743396700841,8.24768147,1806.6,1806.3,21.89872363]
[1743396701033,13.78319147,1806.6,1806.3,21.89872363]
[1743396701249,15.16151062,1806.6,1806.3,21.89872363]
[1743396701465,5.53557,1806.5,1806.3,21.89872363]
[1743396701867,9.62600062,1806.6,1806.1,32.8606]
[1743396701868,5.53622,1806.3,1806.1,32.8606]
[1743396702043,5.53622,1806.3,1806.1,0.1]
[1743396702239,5.53648,1806.2,1806.1,0.1]
[1743396702465,9.07347262,1806.3,1806.1,0.1]
[1743396702768,3.53725262,1806.3,1806.1,0.1]
[1743396702961,2.71239147,1806.2,1806.1,0.1]
[1743396703140,8.24887147,1806.2,1806.1,0.1]
[1743396706261,9.06977147,1806.2,1806.1,0.1]
[1743396707201,12.06977147,1806.2,1806.1,0.1]
[1743396707352,12.61977147,1806.2,1806.1,0.1]
[1743396707548,14.43537462,1806.2,1806.1,0.1]
[1743396709057,20.48537462,1806.2,1806.1,0.1]
[1743396709758,20.48537462,1806.2,1806.1,1e-05]
[1743396709960,34.57125418,1806.2,1806.1,1e-05]
[1743396710258,32.86906418,1806.2,1806.1,1e-05]
[1743396710555,32.05231518,1806.2,1806.1,1e-05]
[1743396710878,27.25787118,1806.2,1806.1,1e-05]
[1743396711183,24.54547971,1806.2,1806.1,1e-05]
[1743396711400,27.06435896,1806.2,1806.1,1e-05]
[1743396713276,28.66876609,1806.2,1806.1,1e-05]
[1743396713987,39.02970318,1806.2,1806.1,1e-05]
[1743396714187,37.50097818,1806.2,1806.1,1e-05]
[1743396714387,37.50097818,1806.2,1805.1,11.11069]
[1743396714388,5.53955,1805.2,1805.1,0.1]
[1743396714592,17.30194147,1805.2,1805.1,0.1]
[1743396714955,14.30194147,1805.2,1805.1,0.1]
[1743396715603,8.76239147,1805.2,1805.1,0.1]
[1743396715887,14.30194147,1805.2,1805.1,0.1]
[1743396717562,8.76239147,1805.2,1805.1,0.1]
[1743396717766,11.58955,1805.2,1805.1,0.1]
[1743396718096,14.30194147,1805.2,1805.1,0.1]
[1743396718665,16.28607062,1805.2,1805.1,0.1]
[1743396721693,17.11067062,1805.2,1805.1,0.1]
[1743396722499,16.28607062,1805.2,1805.1,0.1]
[1743396724996,11.58955,1805.2,1805.1,0.1]
[1743396725294,11.07831,1805.4,1805.1,0.1]
[1743396725493,5.53955,1805.2,1805.1,0.1]
[1743396726767,5.53865,1805.5,1805.1,5.63972]
[1743396726966,5.53865,1805.5,1805.2,0.7575]
[1743396727192,14.58834,1805.6,1805.2,6.29698]
[1743396727392,5.53864,1805.5,1805.2,0.7575]
[1743396727597,5.5392,1805.4,1805.2,0.7575]
[1743396727787,2.71239147,1805.5,1805.2,0.7575]
[1743396727788,8.25102147,1805.5,1805.2,0.7575]
[1743396728296,0.8246,1805.8,1805.3,5.53922]
[1743396728297,8.25049147,1805.7,1805.3,5.53922]
[1743396728599,8.25049147,1805.7,1805.4,0.7575]
[1743396728762,5.5381,1805.7,1805.4,0.7575]
[1743396729773,5.5379,1805.8,1805.4,0.7575]
[1743396730095,5.53803,1805.7,1805.4,0.7575]
[1743396730599,5.5379,1805.8,1805.4,6.29643]
[1743396731196,5.53625,1806.3,1805.8,5.53752]
[1743396731494,5.53625,1806.3,1805.9,6.29478]
[1743396731699,5.53588,1806.4,1805.9,6.29478]
[1743396731899,14.29796147,1806.5,1806.1,0.7575]
[1743396732096,1.42979615,1806.5,1806.1,6.29426]
[1743396732296,5.5354,1806.6,1806.2,5.53647]
[1743396732600,5.5354,1806.6,1806.1,6.29406]
[1743396732766,5.5354,1806.6,1806.2,5.53648]
[1743396733165,5.5354,1806.6,1806.1,6.29406]
[1743396733166,5.53559,1806.5,1806.3,0.7716]
[1743396733371,5.53553,1806.6,1806.3,0.7716]
[1743396734574,11.58497,1806.7,1806.3,0.7716]
[1743396734876,5.53493,1806.8,1806.3,7.485584]
[1743396735077,5.5351,1806.7,1806.3,7.485584]
[1743396735997,5.5351,1806.7,1806.3,7.485844]
[1743396738206,5.5347,1806.8,1806.3,7.485694]
[1743396738395,5.5347,1806.8,1806.4,5.53575]
[1743396738590,11.24698147,1806.9,1806.4,5.53565]
[1743396738792,4.80487815,1806.9,1806.5,0.7716]
[1743396738993,10.33940815,1806.9,1806.5,6.30712]
[1743396739198,7.33940815,1806.9,1806.5,7.42548666]
[1743396739372,17.11856,1807.0,1806.5,7.42530666]
[1743396739579,5.53427,1807.0,1806.6,5.53509]
[1743396739772,5.53427,1807.0,1806.7,0.7716]
[1743396740207,11.06857,1807.0,1806.7,0.7716]
[1743396740503,6.05,1807.1,1806.7,0.7716]
[1743396740707,5.53384,1807.1,1806.7,7.13263137]
[1743396741122,5.53372,1807.2,1806.7,7.13263137]
[1743396741319,5.53365,1807.2,1806.8,5.53463]
[1743396742091,11.58251,1807.5,1807.0,5.53373]
[1743396742284,1.24337652,1807.5,1807.1,6.3051]
[1743396742607,6.77607652,1807.5,1807.1,0.7716]
[1743396742810,5.5327,1807.5,1807.1,0.7716]
[1743396742984,5.5327,1807.5,1807.1,6.30531]
[1743396743181,5.53226,1807.6,1807.1,6.30531]
[1743396743381,5.53226,1807.6,1807.1,12.95780258]
[1743396743586,5.53226,1807.6,1807.1,12.95781258]
[1743396743787,11.58182,1807.8,1807.2,5.53325]
[1743396744015,5.53201,1807.7,1807.2,6.30485]
[1743396744728,5.53201,1807.7,1807.2,11.83802]
[1743396745114,11.06418,1807.7,1807.2,6.30477]
[1743396745319,5.53229,1807.6,1807.2,6.30477]
[1743396746320,5.53229,1807.6,1807.2,7.13087137]
[1743396748619,5.53201,1807.7,1807.2,12.66409137]
[1743396748991,5.53219,1807.6,1807.2,12.66416137]
[1743396749742,5.53252,1807.5,1807.2,0.7716]
[1743396750303,5.53219,1807.6,1807.2,0.7716]
[1743396750928,5.53219,1807.6,1807.2,6.30486]
[1743396751137,5.53189,1807.7,1807.3,11.06605]
[1743396751432,5.53189,1807.7,1807.3,11.06595]
[1743396751730,5.63147,1807.9,1807.5,0.8163]
[1743396751932,5.53186,1807.8,1807.5,0.8163]
[1743396752311,4.31441615,1807.9,1807.5,6.3488]
[1743396752831,9.84582615,1807.9,1807.5,6.3488]
[1743396753618,6.84582615,1807.9,1807.5,6.3488]
[1743396754001,1.31441615,1807.9,1807.6,5.53214]
[1743396754232,6.84590615,1807.9,1807.5,6.3488]
[1743396754536,12.37746615,1807.9,1807.5,6.3488]
[1743396755424,5.53161,1807.8,1807.5,0.8163]
[1743396755736,6.84590615,1807.9,1807.5,6.34868]
[1743396756047,12.37742615,1807.9,1807.5,6.34868]
[1743396756750,0.1,1807.9,1807.6,5.53203]
[1743396757341,5.53191,1807.7,1807.5,0.8163]
[1743396758549,11.06335,1807.8,1807.5,0.8163]
[1743396758752,5.53189,1807.7,1807.5,0.8163]
[1743396759026,5.53252,1807.5,1807.3,0.8163]
[1743396759543,5.53252,1807.5,1807.2,5.468]
[1743396760014,5.5322,1807.6,1807.2,11.00136]
[1743396760216,5.5322,1807.6,1807.3,0.8163]
[1743396760523,6.90996015,1807.6,1807.3,0.8163]
[1743396760918,8.24430147,1807.7,1807.3,6.34933]
[1743396761123,13.77634147,1807.7,1807.3,6.34933]
[1743396761349,5.53231,1807.6,1807.3,0.8163]
[1743396764829,11.06474,1807.6,1807.3,0.8163]
[1743396765231,5.53231,1807.6,1807.3,0.8163]
[1743396765617,11.06474,1807.6,1807.3,0.8163]
[1743396766123,5.53231,1807.6,1807.3,0.8163]
[1743396766324,11.06477,1807.6,1807.3,0.8163]
[1743396766537,5.5328,1807.4,1807.3,0.8163]
[1743396766738,5.5328,1807.4,1807.1,0.8178]
[1743396767948,5.5328,1807.4,1807.1,1.94391238]
[1743396768958,5.5328,1807.4,1807.1,7.47762238]
[1743396769161,5.53255,1807.5,1807.1,13.01123238]
[1743396769364,5.53255,1807.5,1807.1,13.01113238]
[1743396769540,11.06528,1807.5,1807.1,7.47752238]
[1743396769756,5.53255,1807.5,1807.1,13.01103238]
[1743396769941,5.53255,1807.5,1807.1,7.47742238]
[1743396770563,5.53255,1807.5,1807.1,13.01102238]
[1743396771262,5.53255,1807.5,1807.1,7.47742238]
[1743396772862,5.53222,1807.6,1807.2,5.53338]
[1743396773054,14.29430147,1807.7,1807.3,6.36361]
[1743396773430,11.58191,1807.7,1807.3,6.36348]
[1743396773637,11.58191,1807.7,1807.3,11.89648]
[1743396773836,5.53224,1807.6,1807.3,0.8305]
[1743396774267,11.06465,1807.6,1807.3,0.8305]
[1743396774786,5.53224,1807.6,1807.3,0.8305]
[1743396776641,1.45272415,1807.6,1807.3,0.8305]
[1743396776841,5.5328,1807.4,1807.1,0.8305]
[1743396781084,5.5328,1807.4,1807.1,6.36417]
[1743396781977,11.58232,1807.6,1807.1,0.8305]
[1743396782158,11.58232,1807.6,1807.2,5.53331]
[1743396783377,17.11481,1807.6,1807.2,5.53331]
[1743396783853,11.58232,1807.6,1807.2,5.53321]
[1743396784179,11.58232,1807.6,1807.3,0.7714]
[1743396784380,6.05,1807.6,1807.3,0.7714]
[1743396784583,6.05,1807.6,1807.3,6.30434]
[1743396784790,11.5822,1807.6,1807.3,6.30434]
[1743396785657,11.5822,1807.6,1807.3,0.7714]
[1743396786476,5.53261,1807.5,1807.3,0.7714]
[1743396786783,17.1147,1807.6,1807.3,0.7714]
[1743396787491,11.0647,1807.6,1807.3,0.7714]
[1743396787790,5.53228,1807.6,1807.3,0.7714]
[1743396788786,5.53189,1807.7,1807.4,5.5327]
[1743396788981,5.53189,1807.7,1807.3,6.934957]
[1743396790290,5.53189,1807.7,1807.3,12.467957]
[1743396790586,5.53159,1807.8,1807.4,5.53269]
[1743396791978,11.06342,1807.8,1807.4,5.53269]
[1743396792359,5.53159,1807.8,1807.4,5.53269]
[1743396794099,5.53193,1807.7,1807.4,5.53269]
[1743396794993,5.53193,1807.7,1807.3,6.934917]
[1743396795665,11.06404,1807.7,1807.3,6.934917]
[1743396795866,5.53193,1807.7,1807.3,6.30444]
[1743396799401,5.53161,1807.8,1807.3,6.30437]
[1743396799571,5.53161,1807.8,1807.4,5.5328]
[1743396799764,5.53161,1807.8,1807.3,6.30437]
[1743396799981,5.53189,1807.7,1807.3,11.83737]
[1743396801401,5.53189,1807.7,1807.3,11.83729]
[1743396801571,5.53189,1807.7,1807.3,6.30432]
[1743396801896,5.53189,1807.7,1807.3,11.83725]
[1743396802295,5.53189,1807.7,1807.3,0.7714]
[1743396802597,2.71239147,1807.5,1807.1,0.8264]
[1743396802895,6.32144,1807.3,1806.9,11.82673]
[1743396803403,6.05,1807.5,1807.2,0.8264]
[1743396803565,6.05,1807.5,1807.3,5.53302]
[1743396803769,13.77637147,1807.7,1807.3,5.53302]
[1743396804276,8.24430147,1807.7,1807.4,5.5328]
[1743396804475,2.71239147,1807.7,1807.3,10.99902]
[1743396804681,5.53231,1807.6,1807.3,5.466]
[1743396804872,5.53256,1807.5,1807.3,5.466]
[1743396806100,5.53231,1807.6,1807.3,5.466]
[1743396807502,8.24428147,1807.7,1807.3,10.99907]
[1743396807705,2.71239147,1807.7,1807.3,10.99894]
[1743396807898,2.71239147,1807.7,1807.4,5.5327]
[1743396808098,2.71239147,1807.7,1807.5,5.53246]
[1743396808404,5.53158,1807.8,1807.5,6.35886]
[1743396808569,8.34368147,1807.9,1807.5,0.8264]
[1743396808570,0.1,1807.9,1807.5,0.8264]
[1743396808775,0.1,1807.9,1807.5,6.35883]
[1743396808776,5.63148,1807.9,1807.5,6.35883]
[1743396808997,8.34387147,1807.9,1807.5,0.8264]
[1743396809678,5.53168,1807.8,1807.5,0.8264]
[1743396809887,9.07211267,1807.9,1807.5,6.35888]
[1743396810084,8.34387147,1807.9,1807.5,6.35888]
[1743396810703,2.81239147,1807.9,1807.6,5.53215]
[1743396811072,2.81239147,1807.9,1807.5,11.89116]
[1743396811277,0.1,1807.9,1807.7,5.53183]
[1743396811478,0.1,1807.9,1807.6,5.53219]
[1743396811678,0.1,1807.9,1807.6,6.35384137]
[1743396812586,0.1,1807.9,1807.6,11.88589137]
[1743396813300,0.1,1807.9,1807.6,6.35370137]
[1743396813492,0.1,1807.9,1807.6,5.53205]
[1743396816107,0.1,1807.9,1807.6,11.06406]
[1743396816405,0.1,1807.9,1807.6,5.53201]
[1743396816608,0.1,1807.9,1807.6,11.06404]
[1743396817000,0.1,1807.9,1807.6,5.53201]
[1743396817197,5.63128,1807.9,1807.6,5.53201]
[1743396817399,0.1,1807.9,1807.6,5.53201]
[1743396817607,0.1,1807.9,1807.6,6.721098]
[1743396820390,0.1,1807.9,1807.6,12.253108]
[1743396820710,0.1,1807.9,1807.6,6.721098]
[1743396822416,0.1,1807.9,1807.6,5.53201]
[1743396823930,0.8714,1807.9,1807.6,5.53201]
[1743396824218,5.53169,1807.8,1807.5,5.464]
[1743396825727,9.11515147,1807.9,1807.3,5.464]
[1743396825728,9.01578147,1807.7,1807.3,5.464]
[1743396825929,5.53233,1807.6,1807.3,5.464]
[1743396826130,5.5325,1807.5,1807.1,38.2303]
[1743396826336,2.71239147,1807.5,1807.2,10.99741]
[1743396826501,9.01569147,1807.7,1807.3,5.53311]
[1743396826707,9.01569147,1807.7,1807.2,10.99734]
[1743396827028,5.5322,1807.6,1807.3,5.53304]
[1743396827230,5.5322,1807.6,1807.2,10.9973]
[1743396828205,5.53251,1807.5,1807.2,5.464]
[1743396828405,5.5322,1807.6,1807.2,10.99737]
[1743396829025,11.06464,1807.6,1807.2,10.99737]
[1743396829225,5.53251,1807.5,1807.2,5.464]
[1743396829735,5.53251,1807.5,1807.2,10.99741]
[1743396830132,5.5322,1807.6,1807.2,10.99741]
[1743396830334,6.30332,1807.7,1807.3,5.53309]
[1743396830503,0.7714,1807.8,1807.5,5.53245]
[1743396830710,0.7714,1807.8,1807.5,5.5325]
[1743396831710,0.7714,1807.8,1807.5,20.0325]
[1743396832335,6.30302,1807.8,1807.5,20.0325]
[1743396832541,6.30302,1807.8,1807.4,6.29837]
[1743396832710,5.53194,1807.7,1807.3,5.53289]
[1743396833111,5.53194,1807.7,1807.4,5.463]
[1743396833608,5.53224,1807.6,1807.4,5.463]
[1743396834140,5.53194,1807.7,1807.4,5.463]
[1743396834854,11.0641,1807.7,1807.4,5.463]
[1743396835041,5.53194,1807.7,1807.4,5.463]
[1743396835242,5.53224,1807.6,1807.4,5.463]
[1743396843733,6.638658,1807.6,1807.4,5.463]
[1743396844254,0.7851,1807.5,1807.4,5.463]
[1743396846539,5.53224,1807.6,1807.4,5.463]
[1743396847127,6.317,1807.7,1807.4,5.463]
[1743396848139,12.46639,1807.9,1807.5,5.53236]
[1743396848341,5.53161,1807.8,1807.4,10.99571]
[1743396848522,7.60264915,1807.8,1807.4,10.99571]
[1743396848958,13.13452915,1807.8,1807.4,10.99571]
[1743396849165,5.53191,1807.7,1807.4,10.99571]
[1743396849523,8.24430147,1807.7,1807.4,5.463]
[1743396850729,2.71239147,1807.7,1807.4,16.52837]
[1743396851728,2.71239147,1807.7,1807.5,5.53249]
[1743396852123,9.12906147,1807.9,1807.5,5.53249]
[1743396852330,9.12905147,1807.9,1807.5,11.06482]
[1743396853160,9.12905147,1807.9,1807.5,11.82922]
[1743396853525,2.81239147,1807.9,1807.6,5.53192]
[1743396853731,0.1,1807.9,1807.7,0.553192]
[1743396854126,0.1,1807.9,1807.8,6.29598]
[1743396856267,0.1,1807.9,1807.8,11.75798]
[1743396860941,0.1,1807.9,1807.8,10.99358]
[1743396862668,0.1,1807.9,1807.8,1.13327198]
[1743396862871,8.34366147,1807.9,1807.6,5.461]
[1743396864970,8.34366147,1807.9,1807.6,10.99319]
[1743396865140,2.81239147,1807.9,1807.6,10.99319]
[1743396865345,2.81239147,1807.9,1807.6,16.52521]
[1743396865542,0.1,1807.9,1807.7,5.53158]
[1743396865760,0.1,1807.9,1807.6,10.99318]
[1743396868151,0.1,1807.9,1807.6,16.52516]
[1743396868547,0.1,1807.9,1807.7,5.53176]
[1743396869051,0.1,1807.9,1807.7,5.53167]
[1743396869249,0.1,1807.9,1807.7,7.414237]
[1743396870076,0.1,1807.9,1807.7,6.630937]
[1743396870378,0.1,1807.9,1807.6,10.99317]
[1743396870568,0.1,1807.9,1807.6,16.52519]
[1743396872080,0.1,1807.9,1807.7,5.53183]
[1743396872457,0.1,1807.9,1807.8,5.53158]
[1743396872654,0.1,1807.9,1807.8,6.31488]
[1743396873200,0.1,1807.9,1807.8,7.499551]
[1743396876372,0.1,1807.9,1807.7,11.06352]
[1743396877679,0.1,1807.9,1807.8,5.53158]
[1743396882398,0.1,1807.9,1807.7,6.35619]
[1743396883089,0.1,1807.9,1807.8,5.53158]
[1743396887886,0.8231,1808.4,1808.3,5.53005]
[1743396888092,16.41487859,1808.7,1808.3,5.53005]
[1743396888284,0.8231,1808.6,1808.4,5.52954]
[1743396888486,2.06588404,1808.7,1808.4,5.52954]
[1743396888683,2.06588404,1808.7,1808.5,5.52937]
[1743396888883,0.8231,1808.7,1808.5,5.52937]
[1743396889598,7.33226308,1808.9,1808.5,5.52928]
[1743396889910,10.04465455,1808.9,1808.5,5.52928]